{"text_format":"3","workbook":"xlsx","n_sheets":3,"sheets":["Журнал відстеження відстані","Дані журналу","обчислення"],"not_rendered":{"charts":1,"defined_names":17},"read":"whole","date_system":"1900"}

{"sheet":"Журнал відстеження відстані","index":0,"n_rows":29,"n_cols":5,"rows_kept":29,"merged":[[0,1,1,7]]}
[null,"ЖУРНАЛ ВІДСТЕЖЕННЯ ПОДОЛАНОЇ ВІДСТАНІ"]
{"$rows_empty":9}
[null,null,"ВІДШКОДУВАННЯ ЗБИТКІВ",null,"УСЬОГО"]
[null,null,"КІЛОМЕТРИ",null,"СУМА ВІДШКОДУВАННЯ"]
[]
[]
[]
[]
[null,null,"2012-05-01",null,"2012-05-10"]
[]
[null,null,"ПЕРІОД",null,"ПЕРІОД"]
[null,null,"ПОЧАТОК",null,"ЗАВЕРШЕННЯ"]
[]
[]
[]
[]
[]
[null,null,54,null,{"v":9800,"d":"9,800"}]
[]
[null,null,"СУМА ВІДШКОДУВАННЯ",null,"ПОПЕРЕДНЬО ВИТРАЧЕНЕ ПАЛЬНЕ"]
[null,null,"л/км",null,"ЛІЧИЛЬНИК ВІДСТАНІ"]

{"sheet":"Дані журналу","index":1,"n_rows":19,"n_cols":15,"rows_kept":19,"merged":[[0,1,1,6]]}
[null,"ЖУРНАЛ ВІДСТЕЖЕННЯ ПОДОЛАНОЇ ВІДСТАНІ"]
[{"$nulls":14}," "]
[]
[]
[null,"ДАТА","ДІЯЛЬНІСТЬ","ЛІЧ. ВІДСТ. 1","РОЗТАШУВАННЯ","ЛІЧ. ВІДСТ. 2","ПУНКТ ПРИЗНАЧЕННЯ","ВІДШКОДУВАТИ","ЛІТРИ","ВАРТІСТЬ","КІЛОМЕТРИ","КМ/Л","Л/КМ","ПРИМІТКИ"]
[null,"2012-05-01","Подорож",{"v":10123,"d":"10,123"},"вул. Березнева, 5",{"v":10130,"d":"10,130"},null,null,15.56,{"v":64.11,"d":"64.11₴"},{"$f":"кілометри","v":7},{"$f":"IF(OR(LEN(дані[[#This Row],[ЛІЧ. ВІДСТ. 2]]),дані[[#This Row],[ЛІЧ. ВІДСТ. 1]]=\"\"),\"\",IFERROR(дані[[#This Row],[КІЛОМЕТРИ]]/дані[[#This Row],[ЛІТРИ]],\"\"))","v":""},{"$f":"IF(дані[[#This Row],[КМ/Л]]=\"\",\"\",100*дані[[#This Row],[ВАРТІСТЬ]]/дані[[#This Row],[КІЛОМЕТРИ]])","v":""}]
[null,"2012-05-01","Подорож",{"v":10130,"d":"10,130"},"Офіс",{"v":10200,"d":"10,200"},"вул. Шкіпера, 4","Так",null,"",{"$f":"кілометри","v":70},{"$f":"IF(OR(LEN(дані[[#This Row],[ЛІЧ. ВІДСТ. 2]]),дані[[#This Row],[ЛІЧ. ВІДСТ. 1]]=\"\"),\"\",IFERROR(дані[[#This Row],[КІЛОМЕТРИ]]/дані[[#This Row],[ЛІТРИ]],\"\"))","v":""},{"$f":"IF(дані[[#This Row],[КМ/Л]]=\"\",\"\",100*дані[[#This Row],[ВАРТІСТЬ]]/дані[[#This Row],[КІЛОМЕТРИ]])","v":""}]
[null,"2012-05-01","Подорож",{"v":10200,"d":"10,200"},"Деснянський район",{"v":10285,"d":"10,285"},"Офіс","Так",null,"",{"$f":"кілометри","v":85},{"$f":"IF(OR(LEN(дані[[#This Row],[ЛІЧ. ВІДСТ. 2]]),дані[[#This Row],[ЛІЧ. ВІДСТ. 1]]=\"\"),\"\",IFERROR(дані[[#This Row],[КІЛОМЕТРИ]]/дані[[#This Row],[ЛІТРИ]],\"\"))","v":""},{"$f":"IF(дані[[#This Row],[КМ/Л]]=\"\",\"\",100*дані[[#This Row],[ВАРТІСТЬ]]/дані[[#This Row],[КІЛОМЕТРИ]])","v":""}]
[null,"2012-05-02","Подорож",{"v":10285,"d":"10,285"},"Офіс",{"v":10450,"d":"10,450"},"Алушта","Так",null,"",{"$f":"кілометри","v":165},{"$f":"IF(OR(LEN(дані[[#This Row],[ЛІЧ. ВІДСТ. 2]]),дані[[#This Row],[ЛІЧ. ВІДСТ. 1]]=\"\"),\"\",IFERROR(дані[[#This Row],[КІЛОМЕТРИ]]/дані[[#This Row],[ЛІТРИ]],\"\"))","v":""},{"$f":"IF(дані[[#This Row],[КМ/Л]]=\"\",\"\",100*дані[[#This Row],[ВАРТІСТЬ]]/дані[[#This Row],[КІЛОМЕТРИ]])","v":""}]
[null,"2012-05-02","Пальне",{"v":10450,"d":"10,450"},"Оболонка",{"$nulls":3},{"v":11.2,"d":"11.20"},{"v":55.42,"d":"55.42₴"},{"$f":"кілометри","v":650},{"$f":"IF(OR(LEN(дані[[#This Row],[ЛІЧ. ВІДСТ. 2]]),дані[[#This Row],[ЛІЧ. ВІДСТ. 1]]=\"\"),\"\",IFERROR(дані[[#This Row],[КІЛОМЕТРИ]]/дані[[#This Row],[ЛІТРИ]],\"\"))","v":{"v":58.03571428571429,"d":"58.0"}},{"$f":"IF(дані[[#This Row],[КМ/Л]]=\"\",\"\",100*дані[[#This Row],[ВАРТІСТЬ]]/дані[[#This Row],[КІЛОМЕТРИ]])","v":{"v":8.526153846153846,"d":"8.5"}}]
[null,"2012-05-02","Подорож",{"v":10500,"d":"10,500"},"Алушта",{"v":10518,"d":"10,518"},"Офіс","Так",null,"",{"$f":"кілометри","v":18},{"$f":"IF(OR(LEN(дані[[#This Row],[ЛІЧ. ВІДСТ. 2]]),дані[[#This Row],[ЛІЧ. ВІДСТ. 1]]=\"\"),\"\",IFERROR(дані[[#This Row],[КІЛОМЕТРИ]]/дані[[#This Row],[ЛІТРИ]],\"\"))","v":""},{"$f":"IF(дані[[#This Row],[КМ/Л]]=\"\",\"\",100*дані[[#This Row],[ВАРТІСТЬ]]/дані[[#This Row],[КІЛОМЕТРИ]])","v":""}]
[null,"2012-05-03","Подорож",{"v":10518,"d":"10,518"},"Офіс",{"v":10745,"d":"10,745"},"Офіс","Так",null,"",{"$f":"кілометри","v":227},{"$f":"IF(OR(LEN(дані[[#This Row],[ЛІЧ. ВІДСТ. 2]]),дані[[#This Row],[ЛІЧ. ВІДСТ. 1]]=\"\"),\"\",IFERROR(дані[[#This Row],[КІЛОМЕТРИ]]/дані[[#This Row],[ЛІТРИ]],\"\"))","v":""},{"$f":"IF(дані[[#This Row],[КМ/Л]]=\"\",\"\",100*дані[[#This Row],[ВАРТІСТЬ]]/дані[[#This Row],[КІЛОМЕТРИ]])","v":""}]
[null,"2012-05-04","Пальне",{"v":10745,"d":"10,745"},"вул. Березнева, 5",{"$nulls":3},{"v":16.6,"d":"16.60"},{"v":69.24,"d":"69.24₴"},{"$f":"кілометри","v":295},{"$f":"IF(OR(LEN(дані[[#This Row],[ЛІЧ. ВІДСТ. 2]]),дані[[#This Row],[ЛІЧ. ВІДСТ. 1]]=\"\"),\"\",IFERROR(дані[[#This Row],[КІЛОМЕТРИ]]/дані[[#This Row],[ЛІТРИ]],\"\"))","v":{"v":17.771084337349397,"d":"17.8"}},{"$f":"IF(дані[[#This Row],[КМ/Л]]=\"\",\"\",100*дані[[#This Row],[ВАРТІСТЬ]]/дані[[#This Row],[КІЛОМЕТРИ]])","v":{"v":23.471186440677965,"d":"23.5"}}]
[null,"2012-05-04","Подорож",{"v":10745,"d":"10,745"},"Офіс",{"v":10800,"d":"10,800"},"Пирогово","Так",null,"",{"$f":"кілометри","v":55},{"$f":"IF(OR(LEN(дані[[#This Row],[ЛІЧ. ВІДСТ. 2]]),дані[[#This Row],[ЛІЧ. ВІДСТ. 1]]=\"\"),\"\",IFERROR(дані[[#This Row],[КІЛОМЕТРИ]]/дані[[#This Row],[ЛІТРИ]],\"\"))","v":""},{"$f":"IF(дані[[#This Row],[КМ/Л]]=\"\",\"\",100*дані[[#This Row],[ВАРТІСТЬ]]/дані[[#This Row],[КІЛОМЕТРИ]])","v":""}]
[null,"2012-05-04","Подорож",{"v":10800,"d":"10,800"},"Пирогово",{"v":10875,"d":"10,875"},"Офіс","Так",null,"",{"$f":"кілометри","v":75},{"$f":"IF(OR(LEN(дані[[#This Row],[ЛІЧ. ВІДСТ. 2]]),дані[[#This Row],[ЛІЧ. ВІДСТ. 1]]=\"\"),\"\",IFERROR(дані[[#This Row],[КІЛОМЕТРИ]]/дані[[#This Row],[ЛІТРИ]],\"\"))","v":""},{"$f":"IF(дані[[#This Row],[КМ/Л]]=\"\",\"\",100*дані[[#This Row],[ВАРТІСТЬ]]/дані[[#This Row],[КІЛОМЕТРИ]])","v":""}]
[null,"2012-05-07","Подорож",{"v":10875,"d":"10,875"},"Офіс",{"v":10921,"d":"10,921"},"вул. Шкіпера, 4","Так",null,"",{"$f":"кілометри","v":46},{"$f":"IF(OR(LEN(дані[[#This Row],[ЛІЧ. ВІДСТ. 2]]),дані[[#This Row],[ЛІЧ. ВІДСТ. 1]]=\"\"),\"\",IFERROR(дані[[#This Row],[КІЛОМЕТРИ]]/дані[[#This Row],[ЛІТРИ]],\"\"))","v":""},{"$f":"IF(дані[[#This Row],[КМ/Л]]=\"\",\"\",100*дані[[#This Row],[ВАРТІСТЬ]]/дані[[#This Row],[КІЛОМЕТРИ]])","v":""}]
[null,"2012-05-07","Подорож",{"v":10921,"d":"10,921"},"Деснянський район",{"v":10969,"d":"10,969"},"Офіс","Так",null,"",{"$f":"кілометри","v":48},{"$f":"IF(OR(LEN(дані[[#This Row],[ЛІЧ. ВІДСТ. 2]]),дані[[#This Row],[ЛІЧ. ВІДСТ. 1]]=\"\"),\"\",IFERROR(дані[[#This Row],[КІЛОМЕТРИ]]/дані[[#This Row],[ЛІТРИ]],\"\"))","v":""},{"$f":"IF(дані[[#This Row],[КМ/Л]]=\"\",\"\",100*дані[[#This Row],[ВАРТІСТЬ]]/дані[[#This Row],[КІЛОМЕТРИ]])","v":""}]
[null,"2012-05-09","Подорож",{"v":10969,"d":"10,969"},"Офіс",{"v":11000,"d":"11,000"},"Рівне","Так",null,"",{"$f":"кілометри","v":31},{"$f":"IF(OR(LEN(дані[[#This Row],[ЛІЧ. ВІДСТ. 2]]),дані[[#This Row],[ЛІЧ. ВІДСТ. 1]]=\"\"),\"\",IFERROR(дані[[#This Row],[КІЛОМЕТРИ]]/дані[[#This Row],[ЛІТРИ]],\"\"))","v":""},{"$f":"IF(дані[[#This Row],[КМ/Л]]=\"\",\"\",100*дані[[#This Row],[ВАРТІСТЬ]]/дані[[#This Row],[КІЛОМЕТРИ]])","v":""}]
[null,"2012-05-09","Подорож",{"v":11000,"d":"11,000"},"Рівне",{"v":11100,"d":"11,100"},"Дім","Ні",null,"",{"$f":"кілометри","v":100},{"$f":"IF(OR(LEN(дані[[#This Row],[ЛІЧ. ВІДСТ. 2]]),дані[[#This Row],[ЛІЧ. ВІДСТ. 1]]=\"\"),\"\",IFERROR(дані[[#This Row],[КІЛОМЕТРИ]]/дані[[#This Row],[ЛІТРИ]],\"\"))","v":""},{"$f":"IF(дані[[#This Row],[КМ/Л]]=\"\",\"\",100*дані[[#This Row],[ВАРТІСТЬ]]/дані[[#This Row],[КІЛОМЕТРИ]])","v":""}]

{"sheet":"обчислення","index":2,"n_rows":69,"n_cols":13,"rows_kept":69,"hidden":true}
["*** Цей аркуш залишається прихованим ***"]
[]
[]
[]
[]
[{"$nulls":8},{"$f":"OFFSET(I9,,Другавісь=\"Вартість пального\")","v":"л/км"}]
[{"$nulls":12},2]
[{"$nulls":7},"Подорож","Пальне","Пальне",null,"Друга вісь: ",{"$f":"REPT(\"КМ/Л\",M7=1)&REPT(\"Вартість пального\",M7=2)","v":"Вартість пального"}]
[{"$nulls":7},"Подолано кілометрів","КМ/Л","л/км"]
[null,null,"Кілометри, за які буде виплачено відшкодування: ",{"$f":"SUMIFS(дані[КІЛОМЕТРИ],дані[ВІДШКОДУВАТИ],\"Так\",дані[ДАТА],\">=\"&Початокперіоду,дані[ДАТА],\"<=\"&Завершенняперіоду)","v":820},null,1,{"$f":"Початокперіоду","v":"2012-05-01"},{"$f":"SUMIFS(дані[КІЛОМЕТРИ],дані[ДАТА],G10,дані[ДІЯЛЬНІСТЬ],$H$8)","v":162},{"$f":"IFERROR(AVERAGEIFS(дані[КМ/Л],дані[ДАТА],G10,дані[ДІЯЛЬНІСТЬ],$I$8),NA())","v":{"$error":"#N/A"}},{"$f":"IFERROR(AVERAGEIFS(дані[Л/КМ],дані[ДАТА],G10,дані[ДІЯЛЬНІСТЬ],$J$8),NA())","v":{"$error":"#N/A"}}]
[null,null,"Загальна сума відшкодування збитків: ",{"$f":"D10*Відшкодуваннявитратнапальнезакм/100","v":{"v":442.8,"d":"442.80₴"}},null,2,{"$f":"G10+1","v":"2012-05-02"},{"$f":"SUMIFS(дані[КІЛОМЕТРИ],дані[ДАТА],G11,дані[ДІЯЛЬНІСТЬ],$H$8)","v":183},{"$f":"IFERROR(AVERAGEIFS(дані[КМ/Л],дані[ДАТА],G11,дані[ДІЯЛЬНІСТЬ],$I$8),NA())","v":{"v":58.03571428571429,"d":"58.0"}},{"$f":"IFERROR(AVERAGEIFS(дані[Л/КМ],дані[ДАТА],G11,дані[ДІЯЛЬНІСТЬ],$J$8),NA())","v":{"v":8.526153846153846,"d":"8.5"}}]
[{"$nulls":5},3,"2012-05-03",{"$f":"SUMIFS(дані[КІЛОМЕТРИ],дані[ДАТА],G12,дані[ДІЯЛЬНІСТЬ],$H$8)","v":227},{"$f":"IFERROR(AVERAGEIFS(дані[КМ/Л],дані[ДАТА],G12,дані[ДІЯЛЬНІСТЬ],$I$8),NA())","v":{"$error":"#N/A"}},{"$f":"IFERROR(AVERAGEIFS(дані[Л/КМ],дані[ДАТА],G12,дані[ДІЯЛЬНІСТЬ],$J$8),NA())","v":{"$error":"#N/A"}}]
[{"$nulls":5},4,"2012-05-04",{"$f":"SUMIFS(дані[КІЛОМЕТРИ],дані[ДАТА],G13,дані[ДІЯЛЬНІСТЬ],$H$8)","v":130},{"$f":"IFERROR(AVERAGEIFS(дані[КМ/Л],дані[ДАТА],G13,дані[ДІЯЛЬНІСТЬ],$I$8),NA())","v":{"v":17.771084337349397,"d":"17.8"}},{"$f":"IFERROR(AVERAGEIFS(дані[Л/КМ],дані[ДАТА],G13,дані[ДІЯЛЬНІСТЬ],$J$8),NA())","v":{"v":23.471186440677965,"d":"23.5"}}]
[{"$nulls":5},5,"2012-05-05",{"$f":"SUMIFS(дані[КІЛОМЕТРИ],дані[ДАТА],G14,дані[ДІЯЛЬНІСТЬ],$H$8)","v":0},{"$f":"IFERROR(AVERAGEIFS(дані[КМ/Л],дані[ДАТА],G14,дані[ДІЯЛЬНІСТЬ],$I$8),NA())","v":{"$error":"#N/A"}},{"$f":"IFERROR(AVERAGEIFS(дані[Л/КМ],дані[ДАТА],G14,дані[ДІЯЛЬНІСТЬ],$J$8),NA())","v":{"$error":"#N/A"}}]
[{"$nulls":5},6,"2012-05-06",{"$f":"SUMIFS(дані[КІЛОМЕТРИ],дані[ДАТА],G15,дані[ДІЯЛЬНІСТЬ],$H$8)","v":0},{"$f":"IFERROR(AVERAGEIFS(дані[КМ/Л],дані[ДАТА],G15,дані[ДІЯЛЬНІСТЬ],$I$8),NA())","v":{"$error":"#N/A"}},{"$f":"IFERROR(AVERAGEIFS(дані[Л/КМ],дані[ДАТА],G15,дані[ДІЯЛЬНІСТЬ],$J$8),NA())","v":{"$error":"#N/A"}}]
[{"$nulls":5},7,"2012-05-07",{"$f":"SUMIFS(дані[КІЛОМЕТРИ],дані[ДАТА],G16,дані[ДІЯЛЬНІСТЬ],$H$8)","v":94},{"$f":"IFERROR(AVERAGEIFS(дані[КМ/Л],дані[ДАТА],G16,дані[ДІЯЛЬНІСТЬ],$I$8),NA())","v":{"$error":"#N/A"}},{"$f":"IFERROR(AVERAGEIFS(дані[Л/КМ],дані[ДАТА],G16,дані[ДІЯЛЬНІСТЬ],$J$8),NA())","v":{"$error":"#N/A"}}]
[{"$nulls":5},8,"2012-05-08",{"$f":"SUMIFS(дані[КІЛОМЕТРИ],дані[ДАТА],G17,дані[ДІЯЛЬНІСТЬ],$H$8)","v":0},{"$f":"IFERROR(AVERAGEIFS(дані[КМ/Л],дані[ДАТА],G17,дані[ДІЯЛЬНІСТЬ],$I$8),NA())","v":{"$error":"#N/A"}},{"$f":"IFERROR(AVERAGEIFS(дані[Л/КМ],дані[ДАТА],G17,дані[ДІЯЛЬНІСТЬ],$J$8),NA())","v":{"$error":"#N/A"}}]
[{"$nulls":5},9,"2012-05-09",{"$f":"SUMIFS(дані[КІЛОМЕТРИ],дані[ДАТА],G18,дані[ДІЯЛЬНІСТЬ],$H$8)","v":131},{"$f":"IFERROR(AVERAGEIFS(дані[КМ/Л],дані[ДАТА],G18,дані[ДІЯЛЬНІСТЬ],$I$8),NA())","v":{"$error":"#N/A"}},{"$f":"IFERROR(AVERAGEIFS(дані[Л/КМ],дані[ДАТА],G18,дані[ДІЯЛЬНІСТЬ],$J$8),NA())","v":{"$error":"#N/A"}}]
[{"$nulls":5},10,"2012-05-10",{"$f":"SUMIFS(дані[КІЛОМЕТРИ],дані[ДАТА],G19,дані[ДІЯЛЬНІСТЬ],$H$8)","v":0},{"$f":"IFERROR(AVERAGEIFS(дані[КМ/Л],дані[ДАТА],G19,дані[ДІЯЛЬНІСТЬ],$I$8),NA())","v":{"$error":"#N/A"}},{"$f":"IFERROR(AVERAGEIFS(дані[Л/КМ],дані[ДАТА],G19,дані[ДІЯЛЬНІСТЬ],$J$8),NA())","v":{"$error":"#N/A"}}]
[{"$nulls":5},11,"2012-05-11",{"$f":"SUMIFS(дані[КІЛОМЕТРИ],дані[ДАТА],G20,дані[ДІЯЛЬНІСТЬ],$H$8)","v":0},{"$f":"IFERROR(AVERAGEIFS(дані[КМ/Л],дані[ДАТА],G20,дані[ДІЯЛЬНІСТЬ],$I$8),NA())","v":{"$error":"#N/A"}},{"$f":"IFERROR(AVERAGEIFS(дані[Л/КМ],дані[ДАТА],G20,дані[ДІЯЛЬНІСТЬ],$J$8),NA())","v":{"$error":"#N/A"}}]
[{"$nulls":5},12,"2012-05-12",{"$f":"SUMIFS(дані[КІЛОМЕТРИ],дані[ДАТА],G21,дані[ДІЯЛЬНІСТЬ],$H$8)","v":0},{"$f":"IFERROR(AVERAGEIFS(дані[КМ/Л],дані[ДАТА],G21,дані[ДІЯЛЬНІСТЬ],$I$8),NA())","v":{"$error":"#N/A"}},{"$f":"IFERROR(AVERAGEIFS(дані[Л/КМ],дані[ДАТА],G21,дані[ДІЯЛЬНІСТЬ],$J$8),NA())","v":{"$error":"#N/A"}}]
[{"$nulls":5},13,"2012-05-13",{"$f":"SUMIFS(дані[КІЛОМЕТРИ],дані[ДАТА],G22,дані[ДІЯЛЬНІСТЬ],$H$8)","v":0},{"$f":"IFERROR(AVERAGEIFS(дані[КМ/Л],дані[ДАТА],G22,дані[ДІЯЛЬНІСТЬ],$I$8),NA())","v":{"$error":"#N/A"}},{"$f":"IFERROR(AVERAGEIFS(дані[Л/КМ],дані[ДАТА],G22,дані[ДІЯЛЬНІСТЬ],$J$8),NA())","v":{"$error":"#N/A"}}]
[{"$nulls":5},14,"2012-05-14",{"$f":"SUMIFS(дані[КІЛОМЕТРИ],дані[ДАТА],G23,дані[ДІЯЛЬНІСТЬ],$H$8)","v":0},{"$f":"IFERROR(AVERAGEIFS(дані[КМ/Л],дані[ДАТА],G23,дані[ДІЯЛЬНІСТЬ],$I$8),NA())","v":{"$error":"#N/A"}},{"$f":"IFERROR(AVERAGEIFS(дані[Л/КМ],дані[ДАТА],G23,дані[ДІЯЛЬНІСТЬ],$J$8),NA())","v":{"$error":"#N/A"}}]
[{"$nulls":5},15,"2012-05-15",{"$f":"SUMIFS(дані[КІЛОМЕТРИ],дані[ДАТА],G24,дані[ДІЯЛЬНІСТЬ],$H$8)","v":0},{"$f":"IFERROR(AVERAGEIFS(дані[КМ/Л],дані[ДАТА],G24,дані[ДІЯЛЬНІСТЬ],$I$8),NA())","v":{"$error":"#N/A"}},{"$f":"IFERROR(AVERAGEIFS(дані[Л/КМ],дані[ДАТА],G24,дані[ДІЯЛЬНІСТЬ],$J$8),NA())","v":{"$error":"#N/A"}}]
[{"$nulls":5},16,"2012-05-16",{"$f":"SUMIFS(дані[КІЛОМЕТРИ],дані[ДАТА],G25,дані[ДІЯЛЬНІСТЬ],$H$8)","v":0},{"$f":"IFERROR(AVERAGEIFS(дані[КМ/Л],дані[ДАТА],G25,дані[ДІЯЛЬНІСТЬ],$I$8),NA())","v":{"$error":"#N/A"}},{"$f":"IFERROR(AVERAGEIFS(дані[Л/КМ],дані[ДАТА],G25,дані[ДІЯЛЬНІСТЬ],$J$8),NA())","v":{"$error":"#N/A"}}]
[{"$nulls":5},17,"2012-05-17",{"$f":"SUMIFS(дані[КІЛОМЕТРИ],дані[ДАТА],G26,дані[ДІЯЛЬНІСТЬ],$H$8)","v":0},{"$f":"IFERROR(AVERAGEIFS(дані[КМ/Л],дані[ДАТА],G26,дані[ДІЯЛЬНІСТЬ],$I$8),NA())","v":{"$error":"#N/A"}},{"$f":"IFERROR(AVERAGEIFS(дані[Л/КМ],дані[ДАТА],G26,дані[ДІЯЛЬНІСТЬ],$J$8),NA())","v":{"$error":"#N/A"}}]
[{"$nulls":5},18,"2012-05-18",{"$f":"SUMIFS(дані[КІЛОМЕТРИ],дані[ДАТА],G27,дані[ДІЯЛЬНІСТЬ],$H$8)","v":0},{"$f":"IFERROR(AVERAGEIFS(дані[КМ/Л],дані[ДАТА],G27,дані[ДІЯЛЬНІСТЬ],$I$8),NA())","v":{"$error":"#N/A"}},{"$f":"IFERROR(AVERAGEIFS(дані[Л/КМ],дані[ДАТА],G27,дані[ДІЯЛЬНІСТЬ],$J$8),NA())","v":{"$error":"#N/A"}}]
[{"$nulls":5},19,"2012-05-19",{"$f":"SUMIFS(дані[КІЛОМЕТРИ],дані[ДАТА],G28,дані[ДІЯЛЬНІСТЬ],$H$8)","v":0},{"$f":"IFERROR(AVERAGEIFS(дані[КМ/Л],дані[ДАТА],G28,дані[ДІЯЛЬНІСТЬ],$I$8),NA())","v":{"$error":"#N/A"}},{"$f":"IFERROR(AVERAGEIFS(дані[Л/КМ],дані[ДАТА],G28,дані[ДІЯЛЬНІСТЬ],$J$8),NA())","v":{"$error":"#N/A"}}]
[{"$nulls":5},20,"2012-05-20",{"$f":"SUMIFS(дані[КІЛОМЕТРИ],дані[ДАТА],G29,дані[ДІЯЛЬНІСТЬ],$H$8)","v":0},{"$f":"IFERROR(AVERAGEIFS(дані[КМ/Л],дані[ДАТА],G29,дані[ДІЯЛЬНІСТЬ],$I$8),NA())","v":{"$error":"#N/A"}},{"$f":"IFERROR(AVERAGEIFS(дані[Л/КМ],дані[ДАТА],G29,дані[ДІЯЛЬНІСТЬ],$J$8),NA())","v":{"$error":"#N/A"}}]
[{"$nulls":5},21,"2012-05-21",{"$f":"SUMIFS(дані[КІЛОМЕТРИ],дані[ДАТА],G30,дані[ДІЯЛЬНІСТЬ],$H$8)","v":0},{"$f":"IFERROR(AVERAGEIFS(дані[КМ/Л],дані[ДАТА],G30,дані[ДІЯЛЬНІСТЬ],$I$8),NA())","v":{"$error":"#N/A"}},{"$f":"IFERROR(AVERAGEIFS(дані[Л/КМ],дані[ДАТА],G30,дані[ДІЯЛЬНІСТЬ],$J$8),NA())","v":{"$error":"#N/A"}}]
[{"$nulls":5},22,"2012-05-22",{"$f":"SUMIFS(дані[КІЛОМЕТРИ],дані[ДАТА],G31,дані[ДІЯЛЬНІСТЬ],$H$8)","v":0},{"$f":"IFERROR(AVERAGEIFS(дані[КМ/Л],дані[ДАТА],G31,дані[ДІЯЛЬНІСТЬ],$I$8),NA())","v":{"$error":"#N/A"}},{"$f":"IFERROR(AVERAGEIFS(дані[Л/КМ],дані[ДАТА],G31,дані[ДІЯЛЬНІСТЬ],$J$8),NA())","v":{"$error":"#N/A"}}]
[{"$nulls":5},23,"2012-05-23",{"$f":"SUMIFS(дані[КІЛОМЕТРИ],дані[ДАТА],G32,дані[ДІЯЛЬНІСТЬ],$H$8)","v":0},{"$f":"IFERROR(AVERAGEIFS(дані[КМ/Л],дані[ДАТА],G32,дані[ДІЯЛЬНІСТЬ],$I$8),NA())","v":{"$error":"#N/A"}},{"$f":"IFERROR(AVERAGEIFS(дані[Л/КМ],дані[ДАТА],G32,дані[ДІЯЛЬНІСТЬ],$J$8),NA())","v":{"$error":"#N/A"}}]
[{"$nulls":5},24,"2012-05-24",{"$f":"SUMIFS(дані[КІЛОМЕТРИ],дані[ДАТА],G33,дані[ДІЯЛЬНІСТЬ],$H$8)","v":0},{"$f":"IFERROR(AVERAGEIFS(дані[КМ/Л],дані[ДАТА],G33,дані[ДІЯЛЬНІСТЬ],$I$8),NA())","v":{"$error":"#N/A"}},{"$f":"IFERROR(AVERAGEIFS(дані[Л/КМ],дані[ДАТА],G33,дані[ДІЯЛЬНІСТЬ],$J$8),NA())","v":{"$error":"#N/A"}}]
[{"$nulls":5},25,"2012-05-25",{"$f":"SUMIFS(дані[КІЛОМЕТРИ],дані[ДАТА],G34,дані[ДІЯЛЬНІСТЬ],$H$8)","v":0},{"$f":"IFERROR(AVERAGEIFS(дані[КМ/Л],дані[ДАТА],G34,дані[ДІЯЛЬНІСТЬ],$I$8),NA())","v":{"$error":"#N/A"}},{"$f":"IFERROR(AVERAGEIFS(дані[Л/КМ],дані[ДАТА],G34,дані[ДІЯЛЬНІСТЬ],$J$8),NA())","v":{"$error":"#N/A"}}]
[{"$nulls":5},26,"2012-05-26",{"$f":"SUMIFS(дані[КІЛОМЕТРИ],дані[ДАТА],G35,дані[ДІЯЛЬНІСТЬ],$H$8)","v":0},{"$f":"IFERROR(AVERAGEIFS(дані[КМ/Л],дані[ДАТА],G35,дані[ДІЯЛЬНІСТЬ],$I$8),NA())","v":{"$error":"#N/A"}},{"$f":"IFERROR(AVERAGEIFS(дані[Л/КМ],дані[ДАТА],G35,дані[ДІЯЛЬНІСТЬ],$J$8),NA())","v":{"$error":"#N/A"}}]
[{"$nulls":5},27,"2012-05-27",{"$f":"SUMIFS(дані[КІЛОМЕТРИ],дані[ДАТА],G36,дані[ДІЯЛЬНІСТЬ],$H$8)","v":0},{"$f":"IFERROR(AVERAGEIFS(дані[КМ/Л],дані[ДАТА],G36,дані[ДІЯЛЬНІСТЬ],$I$8),NA())","v":{"$error":"#N/A"}},{"$f":"IFERROR(AVERAGEIFS(дані[Л/КМ],дані[ДАТА],G36,дані[ДІЯЛЬНІСТЬ],$J$8),NA())","v":{"$error":"#N/A"}}]
[{"$nulls":5},28,"2012-05-28",{"$f":"SUMIFS(дані[КІЛОМЕТРИ],дані[ДАТА],G37,дані[ДІЯЛЬНІСТЬ],$H$8)","v":0},{"$f":"IFERROR(AVERAGEIFS(дані[КМ/Л],дані[ДАТА],G37,дані[ДІЯЛЬНІСТЬ],$I$8),NA())","v":{"$error":"#N/A"}},{"$f":"IFERROR(AVERAGEIFS(дані[Л/КМ],дані[ДАТА],G37,дані[ДІЯЛЬНІСТЬ],$J$8),NA())","v":{"$error":"#N/A"}}]
[{"$nulls":5},29,"2012-05-29",{"$f":"SUMIFS(дані[КІЛОМЕТРИ],дані[ДАТА],G38,дані[ДІЯЛЬНІСТЬ],$H$8)","v":0},{"$f":"IFERROR(AVERAGEIFS(дані[КМ/Л],дані[ДАТА],G38,дані[ДІЯЛЬНІСТЬ],$I$8),NA())","v":{"$error":"#N/A"}},{"$f":"IFERROR(AVERAGEIFS(дані[Л/КМ],дані[ДАТА],G38,дані[ДІЯЛЬНІСТЬ],$J$8),NA())","v":{"$error":"#N/A"}}]
[{"$nulls":5},30,"2012-05-30",{"$f":"SUMIFS(дані[КІЛОМЕТРИ],дані[ДАТА],G39,дані[ДІЯЛЬНІСТЬ],$H$8)","v":0},{"$f":"IFERROR(AVERAGEIFS(дані[КМ/Л],дані[ДАТА],G39,дані[ДІЯЛЬНІСТЬ],$I$8),NA())","v":{"$error":"#N/A"}},{"$f":"IFERROR(AVERAGEIFS(дані[Л/КМ],дані[ДАТА],G39,дані[ДІЯЛЬНІСТЬ],$J$8),NA())","v":{"$error":"#N/A"}}]
[{"$nulls":5},31,"2012-05-31",{"$f":"SUMIFS(дані[КІЛОМЕТРИ],дані[ДАТА],G40,дані[ДІЯЛЬНІСТЬ],$H$8)","v":0},{"$f":"IFERROR(AVERAGEIFS(дані[КМ/Л],дані[ДАТА],G40,дані[ДІЯЛЬНІСТЬ],$I$8),NA())","v":{"$error":"#N/A"}},{"$f":"IFERROR(AVERAGEIFS(дані[Л/КМ],дані[ДАТА],G40,дані[ДІЯЛЬНІСТЬ],$J$8),NA())","v":{"$error":"#N/A"}}]
[{"$nulls":5},32,"2012-06-01",{"$f":"SUMIFS(дані[КІЛОМЕТРИ],дані[ДАТА],G41,дані[ДІЯЛЬНІСТЬ],$H$8)","v":0},{"$f":"IFERROR(AVERAGEIFS(дані[КМ/Л],дані[ДАТА],G41,дані[ДІЯЛЬНІСТЬ],$I$8),NA())","v":{"$error":"#N/A"}},{"$f":"IFERROR(AVERAGEIFS(дані[Л/КМ],дані[ДАТА],G41,дані[ДІЯЛЬНІСТЬ],$J$8),NA())","v":{"$error":"#N/A"}}]
[{"$nulls":5},33,"2012-06-02",{"$f":"SUMIFS(дані[КІЛОМЕТРИ],дані[ДАТА],G42,дані[ДІЯЛЬНІСТЬ],$H$8)","v":0},{"$f":"IFERROR(AVERAGEIFS(дані[КМ/Л],дані[ДАТА],G42,дані[ДІЯЛЬНІСТЬ],$I$8),NA())","v":{"$error":"#N/A"}},{"$f":"IFERROR(AVERAGEIFS(дані[Л/КМ],дані[ДАТА],G42,дані[ДІЯЛЬНІСТЬ],$J$8),NA())","v":{"$error":"#N/A"}}]
[{"$nulls":5},34,{"$f":"G42+1","v":"2012-06-03"},{"$f":"SUMIFS(дані[КІЛОМЕТРИ],дані[ДАТА],G43,дані[ДІЯЛЬНІСТЬ],$H$8)","v":0},{"$f":"IFERROR(AVERAGEIFS(дані[КМ/Л],дані[ДАТА],G43,дані[ДІЯЛЬНІСТЬ],$I$8),NA())","v":{"$error":"#N/A"}},{"$f":"IFERROR(AVERAGEIFS(дані[Л/КМ],дані[ДАТА],G43,дані[ДІЯЛЬНІСТЬ],$J$8),NA())","v":{"$error":"#N/A"}}]
[{"$nulls":5},35,"2012-06-04",{"$f":"SUMIFS(дані[КІЛОМЕТРИ],дані[ДАТА],G44,дані[ДІЯЛЬНІСТЬ],$H$8)","v":0},{"$f":"IFERROR(AVERAGEIFS(дані[КМ/Л],дані[ДАТА],G44,дані[ДІЯЛЬНІСТЬ],$I$8),NA())","v":{"$error":"#N/A"}},{"$f":"IFERROR(AVERAGEIFS(дані[Л/КМ],дані[ДАТА],G44,дані[ДІЯЛЬНІСТЬ],$J$8),NA())","v":{"$error":"#N/A"}}]
[{"$nulls":5},36,"2012-06-05",{"$f":"SUMIFS(дані[КІЛОМЕТРИ],дані[ДАТА],G45,дані[ДІЯЛЬНІСТЬ],$H$8)","v":0},{"$f":"IFERROR(AVERAGEIFS(дані[КМ/Л],дані[ДАТА],G45,дані[ДІЯЛЬНІСТЬ],$I$8),NA())","v":{"$error":"#N/A"}},{"$f":"IFERROR(AVERAGEIFS(дані[Л/КМ],дані[ДАТА],G45,дані[ДІЯЛЬНІСТЬ],$J$8),NA())","v":{"$error":"#N/A"}}]
[{"$nulls":5},37,"2012-06-06",{"$f":"SUMIFS(дані[КІЛОМЕТРИ],дані[ДАТА],G46,дані[ДІЯЛЬНІСТЬ],$H$8)","v":0},{"$f":"IFERROR(AVERAGEIFS(дані[КМ/Л],дані[ДАТА],G46,дані[ДІЯЛЬНІСТЬ],$I$8),NA())","v":{"$error":"#N/A"}},{"$f":"IFERROR(AVERAGEIFS(дані[Л/КМ],дані[ДАТА],G46,дані[ДІЯЛЬНІСТЬ],$J$8),NA())","v":{"$error":"#N/A"}}]
[{"$nulls":5},38,"2012-06-07",{"$f":"SUMIFS(дані[КІЛОМЕТРИ],дані[ДАТА],G47,дані[ДІЯЛЬНІСТЬ],$H$8)","v":0},{"$f":"IFERROR(AVERAGEIFS(дані[КМ/Л],дані[ДАТА],G47,дані[ДІЯЛЬНІСТЬ],$I$8),NA())","v":{"$error":"#N/A"}},{"$f":"IFERROR(AVERAGEIFS(дані[Л/КМ],дані[ДАТА],G47,дані[ДІЯЛЬНІСТЬ],$J$8),NA())","v":{"$error":"#N/A"}}]
[{"$nulls":5},39,"2012-06-08",{"$f":"SUMIFS(дані[КІЛОМЕТРИ],дані[ДАТА],G48,дані[ДІЯЛЬНІСТЬ],$H$8)","v":0},{"$f":"IFERROR(AVERAGEIFS(дані[КМ/Л],дані[ДАТА],G48,дані[ДІЯЛЬНІСТЬ],$I$8),NA())","v":{"$error":"#N/A"}},{"$f":"IFERROR(AVERAGEIFS(дані[Л/КМ],дані[ДАТА],G48,дані[ДІЯЛЬНІСТЬ],$J$8),NA())","v":{"$error":"#N/A"}}]
[{"$nulls":5},40,"2012-06-09",{"$f":"SUMIFS(дані[КІЛОМЕТРИ],дані[ДАТА],G49,дані[ДІЯЛЬНІСТЬ],$H$8)","v":0},{"$f":"IFERROR(AVERAGEIFS(дані[КМ/Л],дані[ДАТА],G49,дані[ДІЯЛЬНІСТЬ],$I$8),NA())","v":{"$error":"#N/A"}},{"$f":"IFERROR(AVERAGEIFS(дані[Л/КМ],дані[ДАТА],G49,дані[ДІЯЛЬНІСТЬ],$J$8),NA())","v":{"$error":"#N/A"}}]
[{"$nulls":5},41,"2012-06-10",{"$f":"SUMIFS(дані[КІЛОМЕТРИ],дані[ДАТА],G50,дані[ДІЯЛЬНІСТЬ],$H$8)","v":0},{"$f":"IFERROR(AVERAGEIFS(дані[КМ/Л],дані[ДАТА],G50,дані[ДІЯЛЬНІСТЬ],$I$8),NA())","v":{"$error":"#N/A"}},{"$f":"IFERROR(AVERAGEIFS(дані[Л/КМ],дані[ДАТА],G50,дані[ДІЯЛЬНІСТЬ],$J$8),NA())","v":{"$error":"#N/A"}}]
[{"$nulls":5},42,"2012-06-11",{"$f":"SUMIFS(дані[КІЛОМЕТРИ],дані[ДАТА],G51,дані[ДІЯЛЬНІСТЬ],$H$8)","v":0},{"$f":"IFERROR(AVERAGEIFS(дані[КМ/Л],дані[ДАТА],G51,дані[ДІЯЛЬНІСТЬ],$I$8),NA())","v":{"$error":"#N/A"}},{"$f":"IFERROR(AVERAGEIFS(дані[Л/КМ],дані[ДАТА],G51,дані[ДІЯЛЬНІСТЬ],$J$8),NA())","v":{"$error":"#N/A"}}]
[{"$nulls":5},43,"2012-06-12",{"$f":"SUMIFS(дані[КІЛОМЕТРИ],дані[ДАТА],G52,дані[ДІЯЛЬНІСТЬ],$H$8)","v":0},{"$f":"IFERROR(AVERAGEIFS(дані[КМ/Л],дані[ДАТА],G52,дані[ДІЯЛЬНІСТЬ],$I$8),NA())","v":{"$error":"#N/A"}},{"$f":"IFERROR(AVERAGEIFS(дані[Л/КМ],дані[ДАТА],G52,дані[ДІЯЛЬНІСТЬ],$J$8),NA())","v":{"$error":"#N/A"}}]
[{"$nulls":5},44,"2012-06-13",{"$f":"SUMIFS(дані[КІЛОМЕТРИ],дані[ДАТА],G53,дані[ДІЯЛЬНІСТЬ],$H$8)","v":0},{"$f":"IFERROR(AVERAGEIFS(дані[КМ/Л],дані[ДАТА],G53,дані[ДІЯЛЬНІСТЬ],$I$8),NA())","v":{"$error":"#N/A"}},{"$f":"IFERROR(AVERAGEIFS(дані[Л/КМ],дані[ДАТА],G53,дані[ДІЯЛЬНІСТЬ],$J$8),NA())","v":{"$error":"#N/A"}}]
[{"$nulls":5},45,"2012-06-14",{"$f":"SUMIFS(дані[КІЛОМЕТРИ],дані[ДАТА],G54,дані[ДІЯЛЬНІСТЬ],$H$8)","v":0},{"$f":"IFERROR(AVERAGEIFS(дані[КМ/Л],дані[ДАТА],G54,дані[ДІЯЛЬНІСТЬ],$I$8),NA())","v":{"$error":"#N/A"}},{"$f":"IFERROR(AVERAGEIFS(дані[Л/КМ],дані[ДАТА],G54,дані[ДІЯЛЬНІСТЬ],$J$8),NA())","v":{"$error":"#N/A"}}]
[{"$nulls":5},46,"2012-06-15",{"$f":"SUMIFS(дані[КІЛОМЕТРИ],дані[ДАТА],G55,дані[ДІЯЛЬНІСТЬ],$H$8)","v":0},{"$f":"IFERROR(AVERAGEIFS(дані[КМ/Л],дані[ДАТА],G55,дані[ДІЯЛЬНІСТЬ],$I$8),NA())","v":{"$error":"#N/A"}},{"$f":"IFERROR(AVERAGEIFS(дані[Л/КМ],дані[ДАТА],G55,дані[ДІЯЛЬНІСТЬ],$J$8),NA())","v":{"$error":"#N/A"}}]
[{"$nulls":5},47,"2012-06-16",{"$f":"SUMIFS(дані[КІЛОМЕТРИ],дані[ДАТА],G56,дані[ДІЯЛЬНІСТЬ],$H$8)","v":0},{"$f":"IFERROR(AVERAGEIFS(дані[КМ/Л],дані[ДАТА],G56,дані[ДІЯЛЬНІСТЬ],$I$8),NA())","v":{"$error":"#N/A"}},{"$f":"IFERROR(AVERAGEIFS(дані[Л/КМ],дані[ДАТА],G56,дані[ДІЯЛЬНІСТЬ],$J$8),NA())","v":{"$error":"#N/A"}}]
[{"$nulls":5},48,"2012-06-17",{"$f":"SUMIFS(дані[КІЛОМЕТРИ],дані[ДАТА],G57,дані[ДІЯЛЬНІСТЬ],$H$8)","v":0},{"$f":"IFERROR(AVERAGEIFS(дані[КМ/Л],дані[ДАТА],G57,дані[ДІЯЛЬНІСТЬ],$I$8),NA())","v":{"$error":"#N/A"}},{"$f":"IFERROR(AVERAGEIFS(дані[Л/КМ],дані[ДАТА],G57,дані[ДІЯЛЬНІСТЬ],$J$8),NA())","v":{"$error":"#N/A"}}]
[{"$nulls":5},49,"2012-06-18",{"$f":"SUMIFS(дані[КІЛОМЕТРИ],дані[ДАТА],G58,дані[ДІЯЛЬНІСТЬ],$H$8)","v":0},{"$f":"IFERROR(AVERAGEIFS(дані[КМ/Л],дані[ДАТА],G58,дані[ДІЯЛЬНІСТЬ],$I$8),NA())","v":{"$error":"#N/A"}},{"$f":"IFERROR(AVERAGEIFS(дані[Л/КМ],дані[ДАТА],G58,дані[ДІЯЛЬНІСТЬ],$J$8),NA())","v":{"$error":"#N/A"}}]
[{"$nulls":5},50,"2012-06-19",{"$f":"SUMIFS(дані[КІЛОМЕТРИ],дані[ДАТА],G59,дані[ДІЯЛЬНІСТЬ],$H$8)","v":0},{"$f":"IFERROR(AVERAGEIFS(дані[КМ/Л],дані[ДАТА],G59,дані[ДІЯЛЬНІСТЬ],$I$8),NA())","v":{"$error":"#N/A"}},{"$f":"IFERROR(AVERAGEIFS(дані[Л/КМ],дані[ДАТА],G59,дані[ДІЯЛЬНІСТЬ],$J$8),NA())","v":{"$error":"#N/A"}}]
[{"$nulls":5},51,"2012-06-20",{"$f":"SUMIFS(дані[КІЛОМЕТРИ],дані[ДАТА],G60,дані[ДІЯЛЬНІСТЬ],$H$8)","v":0},{"$f":"IFERROR(AVERAGEIFS(дані[КМ/Л],дані[ДАТА],G60,дані[ДІЯЛЬНІСТЬ],$I$8),NA())","v":{"$error":"#N/A"}},{"$f":"IFERROR(AVERAGEIFS(дані[Л/КМ],дані[ДАТА],G60,дані[ДІЯЛЬНІСТЬ],$J$8),NA())","v":{"$error":"#N/A"}}]
[{"$nulls":5},52,"2012-06-21",{"$f":"SUMIFS(дані[КІЛОМЕТРИ],дані[ДАТА],G61,дані[ДІЯЛЬНІСТЬ],$H$8)","v":0},{"$f":"IFERROR(AVERAGEIFS(дані[КМ/Л],дані[ДАТА],G61,дані[ДІЯЛЬНІСТЬ],$I$8),NA())","v":{"$error":"#N/A"}},{"$f":"IFERROR(AVERAGEIFS(дані[Л/КМ],дані[ДАТА],G61,дані[ДІЯЛЬНІСТЬ],$J$8),NA())","v":{"$error":"#N/A"}}]
[{"$nulls":5},53,"2012-06-22",{"$f":"SUMIFS(дані[КІЛОМЕТРИ],дані[ДАТА],G62,дані[ДІЯЛЬНІСТЬ],$H$8)","v":0},{"$f":"IFERROR(AVERAGEIFS(дані[КМ/Л],дані[ДАТА],G62,дані[ДІЯЛЬНІСТЬ],$I$8),NA())","v":{"$error":"#N/A"}},{"$f":"IFERROR(AVERAGEIFS(дані[Л/КМ],дані[ДАТА],G62,дані[ДІЯЛЬНІСТЬ],$J$8),NA())","v":{"$error":"#N/A"}}]
[{"$nulls":5},54,"2012-06-23",{"$f":"SUMIFS(дані[КІЛОМЕТРИ],дані[ДАТА],G63,дані[ДІЯЛЬНІСТЬ],$H$8)","v":0},{"$f":"IFERROR(AVERAGEIFS(дані[КМ/Л],дані[ДАТА],G63,дані[ДІЯЛЬНІСТЬ],$I$8),NA())","v":{"$error":"#N/A"}},{"$f":"IFERROR(AVERAGEIFS(дані[Л/КМ],дані[ДАТА],G63,дані[ДІЯЛЬНІСТЬ],$J$8),NA())","v":{"$error":"#N/A"}}]
[{"$nulls":5},55,"2012-06-24",{"$f":"SUMIFS(дані[КІЛОМЕТРИ],дані[ДАТА],G64,дані[ДІЯЛЬНІСТЬ],$H$8)","v":0},{"$f":"IFERROR(AVERAGEIFS(дані[КМ/Л],дані[ДАТА],G64,дані[ДІЯЛЬНІСТЬ],$I$8),NA())","v":{"$error":"#N/A"}},{"$f":"IFERROR(AVERAGEIFS(дані[Л/КМ],дані[ДАТА],G64,дані[ДІЯЛЬНІСТЬ],$J$8),NA())","v":{"$error":"#N/A"}}]
[{"$nulls":5},56,"2012-06-25",{"$f":"SUMIFS(дані[КІЛОМЕТРИ],дані[ДАТА],G65,дані[ДІЯЛЬНІСТЬ],$H$8)","v":0},{"$f":"IFERROR(AVERAGEIFS(дані[КМ/Л],дані[ДАТА],G65,дані[ДІЯЛЬНІСТЬ],$I$8),NA())","v":{"$error":"#N/A"}},{"$f":"IFERROR(AVERAGEIFS(дані[Л/КМ],дані[ДАТА],G65,дані[ДІЯЛЬНІСТЬ],$J$8),NA())","v":{"$error":"#N/A"}}]
[{"$nulls":5},57,"2012-06-26",{"$f":"SUMIFS(дані[КІЛОМЕТРИ],дані[ДАТА],G66,дані[ДІЯЛЬНІСТЬ],$H$8)","v":0},{"$f":"IFERROR(AVERAGEIFS(дані[КМ/Л],дані[ДАТА],G66,дані[ДІЯЛЬНІСТЬ],$I$8),NA())","v":{"$error":"#N/A"}},{"$f":"IFERROR(AVERAGEIFS(дані[Л/КМ],дані[ДАТА],G66,дані[ДІЯЛЬНІСТЬ],$J$8),NA())","v":{"$error":"#N/A"}}]
[{"$nulls":5},58,"2012-06-27",{"$f":"SUMIFS(дані[КІЛОМЕТРИ],дані[ДАТА],G67,дані[ДІЯЛЬНІСТЬ],$H$8)","v":0},{"$f":"IFERROR(AVERAGEIFS(дані[КМ/Л],дані[ДАТА],G67,дані[ДІЯЛЬНІСТЬ],$I$8),NA())","v":{"$error":"#N/A"}},{"$f":"IFERROR(AVERAGEIFS(дані[Л/КМ],дані[ДАТА],G67,дані[ДІЯЛЬНІСТЬ],$J$8),NA())","v":{"$error":"#N/A"}}]
[{"$nulls":5},59,"2012-06-28",{"$f":"SUMIFS(дані[КІЛОМЕТРИ],дані[ДАТА],G68,дані[ДІЯЛЬНІСТЬ],$H$8)","v":0},{"$f":"IFERROR(AVERAGEIFS(дані[КМ/Л],дані[ДАТА],G68,дані[ДІЯЛЬНІСТЬ],$I$8),NA())","v":{"$error":"#N/A"}},{"$f":"IFERROR(AVERAGEIFS(дані[Л/КМ],дані[ДАТА],G68,дані[ДІЯЛЬНІСТЬ],$J$8),NA())","v":{"$error":"#N/A"}}]
[{"$nulls":5},60,"2012-06-29",{"$f":"SUMIFS(дані[КІЛОМЕТРИ],дані[ДАТА],G69,дані[ДІЯЛЬНІСТЬ],$H$8)","v":0},{"$f":"IFERROR(AVERAGEIFS(дані[КМ/Л],дані[ДАТА],G69,дані[ДІЯЛЬНІСТЬ],$I$8),NA())","v":{"$error":"#N/A"}},{"$f":"IFERROR(AVERAGEIFS(дані[Л/КМ],дані[ДАТА],G69,дані[ДІЯЛЬНІСТЬ],$J$8),NA())","v":{"$error":"#N/A"}}]